[Event "Betsys MČR v online bleskovém šachu 2021"]
[Site "Chess.com"]
[Date "2021.04.17"]
[Round "8"]
[White "Soural_J"]
[Black "ffbp3q"]
[Result "0-1"]
[WhiteElo "2188"]
[BlackElo "2365"]
[TimeControl "180+1"]
[EndTime "10:22:23 PDT"]
[Termination "Uživatel ffbp3q zvítězil na čas"]

1. Nf3 {[%clk 0:03:00.9]} 1... d5 {[%clk 0:02:58.7]} 2. c4 {[%clk 0:03:00.7]}
2... d4 {[%clk 0:02:57.3]} 3. e3 {[%clk 0:02:59.1]} 3... c5 {[%clk 0:02:56.4]}
4. exd4 {[%clk 0:02:58.7]} 4... cxd4 {[%clk 0:02:56.5]} 5. d3 {[%clk 0:02:59]}
5... Nc6 {[%clk 0:02:56]} 6. g3 {[%clk 0:02:59.3]} 6... Nf6 {[%clk 0:02:54.9]}
7. Bg2 {[%clk 0:02:59.8]} 7... g6 {[%clk 0:02:55.1]} 8. O-O {[%clk 0:02:59.7]}
8... Bg7 {[%clk 0:02:55.4]} 9. Re1 {[%clk 0:02:56.5]} 9... O-O {[%clk
0:02:54.9]} 10. Na3 {[%clk 0:02:56.3]} 10... Re8 {[%clk 0:02:45.5]} 11. Bf4
{[%clk 0:02:52.8]} 11... Bg4 {[%clk 0:02:39.9]} 12. h3 {[%clk 0:02:50.7]} 12...
Bd7 {[%clk 0:02:22.8]} 13. Nb5 {[%clk 0:02:42.4]} 13... Rc8 {[%clk 0:02:19.3]}
14. Nbxd4 {[%clk 0:02:30.7]} 14... Nh5 {[%clk 0:02:16]} 15. Nxc6 {[%clk
0:02:23.6]} 15... Bxc6 {[%clk 0:02:13.3]} 16. Be5 {[%clk 0:02:19.9]} 16... f6
{[%clk 0:02:03.3]} 17. Bc3 {[%clk 0:02:18.5]} 17... e5 {[%clk 0:02:03.2]} 18. b4
{[%clk 0:02:11.1]} 18... a6 {[%clk 0:02:01.5]} 19. a4 {[%clk 0:02:08.3]} 19...
Bd7 {[%clk 0:01:39.8]} 20. Nd2 {[%clk 0:01:43.7]} 20... Qc7 {[%clk 0:01:37.8]}
21. Rc1 {[%clk 0:01:34.6]} 21... Rcd8 {[%clk 0:01:32.6]} 22. d4 {[%clk
0:01:27.2]} 22... exd4 {[%clk 0:01:25.4]} 23. Rxe8+ {[%clk 0:01:27]} 23... Bxe8
{[%clk 0:01:23.8]} 24. Bb2 {[%clk 0:01:24.4]} 24... f5 {[%clk 0:01:20.7]} 25.
Nf3 {[%clk 0:01:04.8]} 25... d3 {[%clk 0:00:53.7]} 26. Bxg7 {[%clk 0:01:02.8]}
26... Qxg7 {[%clk 0:00:48.6]} 27. Ng5 {[%clk 0:00:53.6]} 27... Qe7 {[%clk
0:00:41.7]} 28. Bd5+ {[%clk 0:00:50.2]} 28... Rxd5 {[%clk 0:00:40.6]} 29. cxd5
{[%clk 0:00:47.8]} 29... Qxg5 {[%clk 0:00:40.6]} 30. Rc8 {[%clk 0:00:47.1]}
30... Kf8 {[%clk 0:00:38.2]} 31. Qxd3 {[%clk 0:00:43.9]} 31... Qe7 {[%clk
0:00:31.9]} 32. d6 {[%clk 0:00:40.6]} 32... Qd7 {[%clk 0:00:28.3]} 33. Rc7
{[%clk 0:00:40.4]} 33... Qxa4 {[%clk 0:00:24.2]} 34. Qd4 {[%clk 0:00:33.4]}
34... Bd7 {[%clk 0:00:17.3]} 35. Qh8+ {[%clk 0:00:26.9]} 35... Kf7 {[%clk
0:00:17.4]} 36. Qxh7+ {[%clk 0:00:26.5]} 36... Ng7 {[%clk 0:00:16.8]} 37. Qh8
{[%clk 0:00:22.5]} 37... Qd1+ {[%clk 0:00:15.5]} 38. Kg2 {[%clk 0:00:22]} 38...
Qxd6 {[%clk 0:00:15.4]} 39. Rc2 {[%clk 0:00:16]} 39... Bc6+ {[%clk 0:00:14.7]}
40. Rxc6 {[%clk 0:00:15.5]} 40... Qxc6+ {[%clk 0:00:14.2]} 41. Kg1 {[%clk
0:00:14.7]} 41... Qd6 {[%clk 0:00:13.5]} 42. Qc8 {[%clk 0:00:13.1]} 42... Qxb4
{[%clk 0:00:12.9]} 43. Qd7+ {[%clk 0:00:13.1]} 43... Qe7 {[%clk 0:00:12.9]} 44.
Qc8 {[%clk 0:00:12.4]} 44... a5 {[%clk 0:00:12.2]} 45. Qc4+ {[%clk 0:00:11.9]}
45... Ne6 {[%clk 0:00:11.3]} 46. Qb5 {[%clk 0:00:11.4]} 46... Qc7 {[%clk
0:00:10]} 47. h4 {[%clk 0:00:09.7]} 47... Qc6 {[%clk 0:00:07.7]} 48. Qxa5 {[%clk
0:00:08.3]} 48... b5 {[%clk 0:00:07.9]} 49. Qa7+ {[%clk 0:00:07.1]} 49... Kf6
{[%clk 0:00:07.7]} 50. Qa1+ {[%clk 0:00:06.3]} 50... Ke7 {[%clk 0:00:06.3]} 51.
Qa7+ {[%clk 0:00:04.2]} 51... Qc7 {[%clk 0:00:05.7]} 52. Qa3+ {[%clk 0:00:03.5]}
52... Qd6 {[%clk 0:00:05.1]} 53. Qa7+ {[%clk 0:00:03]} 53... Qc7 {[%clk
0:00:05]} 54. Qa3+ {[%clk 0:00:02.3]} 54... Qc5 {[%clk 0:00:05.3]} 0-1

[Event "Betsys MČR v online bleskovém šachu 2021"]
[Site "Chess.com"]
[Date "2021.04.17"]
[Round "8"]
[White "David_Mic"]
[Black "KajaOl"]
[Result "1/2-1/2"]
[WhiteElo "1996"]
[BlackElo "2262"]
[TimeControl "180+1"]
[EndTime "10:22:27 PDT"]
[Termination "Remíza vypršením času s nedostatkem materiálu"]

1. e4 {[%clk 0:03:00.9]} 1... Nf6 {[%clk 0:03:00.9]} 2. e5 {[%clk 0:02:59]} 2...
Nd5 {[%clk 0:03:01.1]} 3. Nc3 {[%clk 0:02:58.9]} 3... Nxc3 {[%clk 0:02:56]} 4.
dxc3 {[%clk 0:02:59.8]} 4... d6 {[%clk 0:02:53.3]} 5. Bc4 {[%clk 0:02:59.3]}
5... e6 {[%clk 0:02:50.3]} 6. Bf4 {[%clk 0:02:54.6]} 6... d5 {[%clk 0:02:48.8]}
7. Bd3 {[%clk 0:02:52.7]} 7... c5 {[%clk 0:02:46.5]} 8. c4 {[%clk 0:02:52.3]}
8... Nc6 {[%clk 0:02:45.3]} 9. Nf3 {[%clk 0:02:47.5]} 9... Be7 {[%clk
0:02:30.5]} 10. O-O {[%clk 0:02:44.7]} 10... a6 {[%clk 0:02:28.4]} 11. c3 {[%clk
0:02:37.4]} 11... dxc4 {[%clk 0:02:20.6]} 12. Bxc4 {[%clk 0:02:35.7]} 12... b5
{[%clk 0:02:19.8]} 13. Bd3 {[%clk 0:02:28.6]} 13... Bb7 {[%clk 0:02:18.1]} 14.
Qc2 {[%clk 0:02:23.2]} 14... h6 {[%clk 0:02:10.1]} 15. Rad1 {[%clk 0:02:21.4]}
15... Qc7 {[%clk 0:02:09.3]} 16. Rfe1 {[%clk 0:02:10.9]} 16... Rd8 {[%clk
0:02:00.1]} 17. Be4 {[%clk 0:02:08.6]} 17... O-O {[%clk 0:01:56.5]} 18. Rxd8
{[%clk 0:01:46.7]} 18... Rxd8 {[%clk 0:01:56]} 19. Rd1 {[%clk 0:01:46.7]} 19...
Rxd1+ {[%clk 0:01:50.6]} 20. Qxd1 {[%clk 0:01:46.2]} 20... Qd8 {[%clk
0:01:41.4]} 21. Qxd8+ {[%clk 0:01:40.5]} 21... Nxd8 {[%clk 0:01:32.2]} 22. Bxb7
{[%clk 0:01:37.2]} 22... Nxb7 {[%clk 0:01:33.1]} 23. Nd2 {[%clk 0:01:35.4]}
23... g5 {[%clk 0:01:19]} 24. Be3 {[%clk 0:01:30.3]} 24... Kg7 {[%clk
0:01:09.4]} 25. Ne4 {[%clk 0:01:29]} 25... Kg6 {[%clk 0:01:08.3]} 26. g4 {[%clk
0:01:24.5]} 26... c4 {[%clk 0:00:54.3]} 27. Kg2 {[%clk 0:01:21.5]} 27... Bd8
{[%clk 0:00:44.9]} 28. Kf3 {[%clk 0:01:09.5]} 28... Bc7 {[%clk 0:00:41.9]} 29.
Bd4 {[%clk 0:01:04.5]} 29... Nd8 {[%clk 0:00:30.7]} 30. Nd6 {[%clk 0:00:54.5]}
30... Nc6 {[%clk 0:00:20.6]} 31. Ke4 {[%clk 0:00:51.5]} 31... f6 {[%clk
0:00:18.7]} 32. Ne8 {[%clk 0:00:47.6]} 32... Bxe5 {[%clk 0:00:13.9]} 33. Bxe5
{[%clk 0:00:41]} 33... Nxe5 {[%clk 0:00:14.1]} 34. f3 {[%clk 0:00:35.2]} 34...
Nd3 {[%clk 0:00:13.8]} 35. Nc7 {[%clk 0:00:33.1]} 35... Nxb2 {[%clk 0:00:12.7]}
36. Nxa6 {[%clk 0:00:32.6]} 36... Nd1 {[%clk 0:00:12.8]} 37. Kd4 {[%clk
0:00:29.8]} 37... e5+ {[%clk 0:00:12.9]} 38. Kc5 {[%clk 0:00:25.2]} 38... Nxc3
{[%clk 0:00:13.3]} 39. Nc7 {[%clk 0:00:25.2]} 39... Nxa2 {[%clk 0:00:11.8]} 40.
Nxb5 {[%clk 0:00:25.3]} 40... c3 {[%clk 0:00:12.1]} 41. Na3 {[%clk 0:00:24.5]}
41... f5 {[%clk 0:00:11.6]} 42. Kc4 {[%clk 0:00:23.6]} 42... e4 {[%clk
0:00:09.9]} 43. fxe4 {[%clk 0:00:22.8]} 43... fxe4 {[%clk 0:00:09.6]} 44. Kb3
{[%clk 0:00:23.4]} 44... Nc1+ {[%clk 0:00:08.2]} 45. Kxc3 {[%clk 0:00:23.2]}
45... Nd3 {[%clk 0:00:08.4]} 46. Kd4 {[%clk 0:00:22.7]} 46... Nf2 {[%clk
0:00:08.7]} 47. Nc2 {[%clk 0:00:19.6]} 47... Nxg4 {[%clk 0:00:07.9]} 48. Kxe4
{[%clk 0:00:19.4]} 48... Nxh2 {[%clk 0:00:06.8]} 49. Ne3 {[%clk 0:00:19.3]}
49... h5 {[%clk 0:00:06.1]} 50. Kd3 {[%clk 0:00:13.9]} 50... Ng4 {[%clk
0:00:06.4]} 51. Ng2 {[%clk 0:00:10.7]} 51... h4 {[%clk 0:00:06.4]} 52. Ke4
{[%clk 0:00:10.9]} 52... Kf6 {[%clk 0:00:04.5]} 53. Kf3 {[%clk 0:00:10.6]} 53...
Kf5 {[%clk 0:00:02.6]} 54. Ne1 {[%clk 0:00:05]} 54... h3 {[%clk 0:00:02.1]} 55.
Kg3 {[%clk 0:00:04.2]} 55... h2 {[%clk 0:00:02.2]} 56. Kg2 {[%clk 0:00:04.5]}
56... Kf4 {[%clk 0:00:02.3]} 57. Nf3 {[%clk 0:00:04.3]} 1/2-1/2

[Event "Betsys MČR v online bleskovém šachu 2021"]
[Site "Chess.com"]
[Date "2021.04.17"]
[Round "8"]
[White "FutureFideMasseur"]
[Black "MartinCerveny"]
[Result "0-1"]
[WhiteElo "2440"]
[BlackElo "2661"]
[TimeControl "180+1"]
[EndTime "10:22:28 PDT"]
[Termination "Uživatel MartinCerveny zvítězil po vzdání soupeře"]

1. d4 {[%clk 0:03:00.9]} 1... d6 {[%clk 0:02:59.4]} 2. c4 {[%clk 0:02:59.8]}
2... e5 {[%clk 0:02:57.8]} 3. d5 {[%clk 0:03:00]} 3... a5 {[%clk 0:02:54.9]} 4.
e4 {[%clk 0:02:59.3]} 4... Nd7 {[%clk 0:02:55]} 5. Nc3 {[%clk 0:02:59]} 5... Nc5
{[%clk 0:02:54.9]} 6. Nge2 {[%clk 0:02:52.4]} 6... Nf6 {[%clk 0:02:53.8]} 7. Ng3
{[%clk 0:02:52]} 7... g6 {[%clk 0:02:53]} 8. Be2 {[%clk 0:02:49.5]} 8... h5
{[%clk 0:02:52.8]} 9. h4 {[%clk 0:02:44.3]} 9... Be7 {[%clk 0:02:36.5]} 10. Bg5
{[%clk 0:02:41.7]} 10... Bg4 {[%clk 0:02:30.2]} 11. Bxg4 {[%clk 0:02:31.3]}
11... Nxg4 {[%clk 0:02:25]} 12. Bxe7 {[%clk 0:02:30.2]} 12... Qxe7 {[%clk
0:02:25.2]} 13. f3 {[%clk 0:02:19.6]} 13... Nh6 {[%clk 0:02:21.2]} 14. Qd2
{[%clk 0:02:13.9]} 14... f5 {[%clk 0:02:10.7]} 15. O-O-O {[%clk 0:02:13.2]}
15... f4 {[%clk 0:02:10.5]} 16. Nge2 {[%clk 0:02:04]} 16... O-O-O {[%clk
0:01:55.2]} 17. Nb5 {[%clk 0:02:02.9]} 17... b6 {[%clk 0:01:53.4]} 18. Kb1
{[%clk 0:02:01.2]} 18... Kb7 {[%clk 0:01:47.2]} 19. Nc1 {[%clk 0:02:00.8]} 19...
g5 {[%clk 0:01:45.2]} 20. Nd3 {[%clk 0:01:45.5]} 20... gxh4 {[%clk 0:01:38.4]}
21. Nxc5+ {[%clk 0:01:27.1]} 21... dxc5 {[%clk 0:01:39.3]} 22. Qf2 {[%clk
0:01:24.6]} 22... Nf7 {[%clk 0:01:21.7]} 23. Rxh4 {[%clk 0:01:21.8]} 23... Qg5
{[%clk 0:01:21.1]} 24. Rdh1 {[%clk 0:01:12.4]} 24... Rdg8 {[%clk 0:01:19.2]} 25.
R4h2 {[%clk 0:01:09.8]} 25... Nd6 {[%clk 0:01:15.8]} 26. Nxd6+ {[%clk
0:01:08.5]} 26... cxd6 {[%clk 0:01:15.3]} 27. Qc2 {[%clk 0:01:08.3]} 27... h4
{[%clk 0:00:59.7]} 28. Qa4 {[%clk 0:01:02.2]} 28... Qd8 {[%clk 0:00:59.4]} 29.
Qc6+ {[%clk 0:00:57.3]} 29... Ka7 {[%clk 0:00:59.2]} 30. a3 {[%clk 0:00:52.2]}
30... Rg7 {[%clk 0:00:58.6]} 31. Ka2 {[%clk 0:00:49]} 31... Rc7 {[%clk
0:00:57.2]} 32. Qb5 {[%clk 0:00:48.2]} 32... Qg5 {[%clk 0:00:48.1]} 33. Qa4
{[%clk 0:00:37.2]} 33... Qg3 {[%clk 0:00:45.3]} 34. Qb5 {[%clk 0:00:35.3]} 34...
Qf2 {[%clk 0:00:35.7]} 35. Rc1 {[%clk 0:00:34]} 35... h3 {[%clk 0:00:33.2]} 36.
Rxh3 {[%clk 0:00:31.6]} 36... Rxh3 {[%clk 0:00:33]} 37. gxh3 {[%clk 0:00:31.7]}
37... Qxf3 {[%clk 0:00:33.2]} 38. Rg1 {[%clk 0:00:31.8]} 38... Qxe4 {[%clk
0:00:31]} 39. Rg8 {[%clk 0:00:28.5]} 39... f3 {[%clk 0:00:22.3]} 40. Rf8 {[%clk
0:00:12.5]} 40... Qd3 {[%clk 0:00:21.5]} 41. Rf6 {[%clk 0:00:09.6]} 41... f2
{[%clk 0:00:18.2]} 42. Rxf2 {[%clk 0:00:08.8]} 42... Qxh3 {[%clk 0:00:17.4]} 43.
Rf6 {[%clk 0:00:07.7]} 43... Qd7 {[%clk 0:00:17]} 44. Qb3 {[%clk 0:00:05.8]}
44... a4 {[%clk 0:00:16.9]} 45. Qc3 {[%clk 0:00:04.7]} 45... Qe7 {[%clk
0:00:16.1]} 46. Re6 {[%clk 0:00:04.3]} 46... Qf8 {[%clk 0:00:16.3]} 47. Qc2
{[%clk 0:00:04.3]} 47... Kb7 {[%clk 0:00:13.1]} 48. Qxa4 {[%clk 0:00:04.5]}
48... Qa8 {[%clk 0:00:12.7]} 49. Qb5 {[%clk 0:00:04.4]} 49... Qa5 {[%clk
0:00:12.2]} 50. Qxa5 {[%clk 0:00:04.6]} 50... bxa5 {[%clk 0:00:13.1]} 51. Rxd6
{[%clk 0:00:04.9]} 51... Re7 {[%clk 0:00:13.6]} 52. Re6 {[%clk 0:00:05.3]} 52...
Rxe6 {[%clk 0:00:13.5]} 53. dxe6 {[%clk 0:00:05.8]} 53... Kc6 {[%clk 0:00:13.9]}
54. Kb3 {[%clk 0:00:06.2]} 54... Kd6 {[%clk 0:00:14.1]} 55. Kc3 {[%clk
0:00:06.7]} 55... Kxe6 {[%clk 0:00:14.3]} 56. b3 {[%clk 0:00:06.6]} 56... Kf5
{[%clk 0:00:14]} 57. Kd3 {[%clk 0:00:07]} 57... Kf4 {[%clk 0:00:13.9]} 58. Ke2
{[%clk 0:00:06.4]} 58... Ke4 {[%clk 0:00:13.5]} 59. b4 {[%clk 0:00:04.9]} 59...
cxb4 {[%clk 0:00:12.4]} 60. axb4 {[%clk 0:00:05.3]} 60... axb4 {[%clk
0:00:12.6]} 61. c5 {[%clk 0:00:05.8]} 61... Kd5 {[%clk 0:00:12.7]} 62. Kd3
{[%clk 0:00:05.3]} 62... Kxc5 {[%clk 0:00:12.8]} 0-1

[Event "Betsys MČR v online bleskovém šachu 2021"]
[Site "Chess.com"]
[Date "2021.04.17"]
[Round "8"]
[White "Ladislav1969"]
[Black "Innerz98"]
[Result "1-0"]
[WhiteElo "2321"]
[BlackElo "2120"]
[TimeControl "180+1"]
[EndTime "10:22:29 PDT"]
[Termination "Uživatel Ladislav1969 zvítězil matem"]

1. e4 {[%clk 0:03:00.9]} 1... e5 {[%clk 0:03:00.1]} 2. Bc4 {[%clk 0:03:00.6]}
2... Nf6 {[%clk 0:03:00.4]} 3. d3 {[%clk 0:03:01.1]} 3... Bc5 {[%clk 0:02:59.8]}
4. Nf3 {[%clk 0:03:00.1]} 4... d6 {[%clk 0:02:59.8]} 5. c3 {[%clk 0:02:59.9]}
5... c6 {[%clk 0:03:00.3]} 6. O-O {[%clk 0:02:55.2]} 6... Be6 {[%clk 0:02:54]}
7. Qe2 {[%clk 0:02:47.9]} 7... Nbd7 {[%clk 0:02:52.8]} 8. b4 {[%clk 0:02:42]}
8... Bb6 {[%clk 0:02:52.9]} 9. Bb3 {[%clk 0:02:41.7]} 9... O-O {[%clk
0:02:52.1]} 10. Bg5 {[%clk 0:02:34.5]} 10... Re8 {[%clk 0:02:47.6]} 11. Nbd2
{[%clk 0:02:34.1]} 11... Nf8 {[%clk 0:02:47.6]} 12. Nc4 {[%clk 0:02:30.8]} 12...
Bc7 {[%clk 0:02:45.5]} 13. Ne3 {[%clk 0:02:29.7]} 13... Ng6 {[%clk 0:02:43.1]}
14. Nf5 {[%clk 0:02:27.4]} 14... h6 {[%clk 0:02:40.4]} 15. Bd2 {[%clk
0:02:06.2]} 15... d5 {[%clk 0:02:26.2]} 16. Rad1 {[%clk 0:01:50.5]} 16... Qd7
{[%clk 0:02:24.1]} 17. N3h4 {[%clk 0:01:30.7]} 17... Nxh4 {[%clk 0:02:02.6]} 18.
Nxh4 {[%clk 0:01:31.6]} 18... Bg4 {[%clk 0:01:54.9]} 19. f3 {[%clk 0:01:31]}
19... Bh5 {[%clk 0:01:54.4]} 20. Nf5 {[%clk 0:01:21]} 20... Bg6 {[%clk
0:01:51.8]} 21. g4 {[%clk 0:01:20.6]} 21... Rad8 {[%clk 0:01:41.8]} 22. Be3
{[%clk 0:00:42.4]} 22... a5 {[%clk 0:01:32.1]} 23. a3 {[%clk 0:00:40.9]} 23...
axb4 {[%clk 0:01:19.4]} 24. axb4 {[%clk 0:00:40.3]} 24... Ra8 {[%clk 0:01:06.2]}
25. Ra1 {[%clk 0:00:29]} 25... Red8 {[%clk 0:00:55.3]} 26. Qf2 {[%clk
0:00:21.9]} 26... Nh7 {[%clk 0:00:42]} 27. Qh4 {[%clk 0:00:19.2]} 27... Bxf5
{[%clk 0:00:30.8]} 28. gxf5 {[%clk 0:00:18.8]} 28... d4 {[%clk 0:00:22.3]} 29.
cxd4 {[%clk 0:00:18]} 29... exd4 {[%clk 0:00:22]} 30. Bxh6 {[%clk 0:00:16.3]}
30... gxh6 {[%clk 0:00:21.6]} 31. Qxh6 {[%clk 0:00:16.2]} 31... Qd6 {[%clk
0:00:21.4]} 32. Qh5 {[%clk 0:00:13.5]} 32... Kh8 {[%clk 0:00:16.5]} 33. Rab1
{[%clk 0:00:09.6]} 33... Rg8+ {[%clk 0:00:13]} 34. Kh1 {[%clk 0:00:09.6]} 34...
Rg5 {[%clk 0:00:12.2]} 35. Qh3 {[%clk 0:00:08.6]} 35... Rag8 {[%clk 0:00:10.1]}
36. Bxf7 {[%clk 0:00:08.7]} 36... R8g7 {[%clk 0:00:09.9]} 37. Bg6 {[%clk
0:00:08.6]} 37... Kg8 {[%clk 0:00:07.9]} 38. Rg1 {[%clk 0:00:08.7]} 38... Rxg1+
{[%clk 0:00:07.3]} 39. Rxg1 {[%clk 0:00:08.8]} 39... Qf4 {[%clk 0:00:07.7]} 40.
Bxh7+ {[%clk 0:00:08.5]} 40... Kf8 {[%clk 0:00:07.8]} 41. Bg6 {[%clk 0:00:07.4]}
41... Ke7 {[%clk 0:00:06.4]} 42. Rg4 {[%clk 0:00:05.5]} 42... Qe3 {[%clk
0:00:06.6]} 43. Qh4+ {[%clk 0:00:04.8]} 43... Kd6 {[%clk 0:00:06]} 44. Qg3+
{[%clk 0:00:04.5]} 44... Ke7 {[%clk 0:00:03.9]} 45. Qh4+ {[%clk 0:00:02.8]}
45... Kd6 {[%clk 0:00:03.8]} 46. Qh3 {[%clk 0:00:01.8]} 46... Qe1+ {[%clk
0:00:03.3]} 47. Rg1 {[%clk 0:00:02]} 47... Qe3 {[%clk 0:00:04.2]} 48. Qg3+
{[%clk 0:00:02.2]} 48... Kd7 {[%clk 0:00:03.6]} 49. Qh3 {[%clk 0:00:01.4]} 49...
Qf4 {[%clk 0:00:04]} 50. f6+ {[%clk 0:00:01.7]} 50... Kd6 {[%clk 0:00:04.5]} 51.
fxg7 {[%clk 0:00:02.3]} 51... Qe3 {[%clk 0:00:05.1]} 52. g8=Q {[%clk 0:00:02.7]}
52... Qg5 {[%clk 0:00:06]} 53. Qf8+ {[%clk 0:00:01.9]} 53... Ke5 {[%clk
0:00:06.9]} 54. Qe8+ {[%clk 0:00:01.6]} 54... Kf4 {[%clk 0:00:07.8]} 55. Qf7+
{[%clk 0:00:01.5]} 55... Ke3 {[%clk 0:00:08.7]} 56. Qff5 {[%clk 0:00:01.8]}
56... Kd2 {[%clk 0:00:09.6]} 57. Qxg5+ {[%clk 0:00:01.8]} 57... Kc2 {[%clk
0:00:10.5]} 58. Qhg2+ {[%clk 0:00:02]} 58... Kc3 {[%clk 0:00:11.4]} 59. Q5d2+
{[%clk 0:00:02.1]} 59... Kb3 {[%clk 0:00:11.4]} 60. Rb1+ {[%clk 0:00:02.6]}
60... Ka4 {[%clk 0:00:12.3]} 61. Qa2+ {[%clk 0:00:02.6]} 61... Kb5 {[%clk
0:00:13.2]} 62. Qc4+ {[%clk 0:00:02.9]} 62... Kb6 {[%clk 0:00:14.1]} 63. Qc5+
{[%clk 0:00:02.8]} 63... Ka6 {[%clk 0:00:13.9]} 64. Ra1+ {[%clk 0:00:03.4]}
64... Ba5 {[%clk 0:00:13.7]} 65. Rxa5# {[%clk 0:00:04.3]} 1-0

[Event "Betsys MČR v online bleskovém šachu 2021"]
[Site "Chess.com"]
[Date "2021.04.17"]
[Round "8"]
[White "jachymcarostrelec4"]
[Black "rolkento"]
[Result "0-1"]
[WhiteElo "1960"]
[BlackElo "2232"]
[TimeControl "180+1"]
[EndTime "10:22:29 PDT"]
[Termination "Uživatel rolkento zvítězil na čas"]

1. d4 {[%clk 0:03:00.9]} 1... d5 {[%clk 0:02:59.6]} 2. c4 {[%clk 0:03:00.7]}
2... c6 {[%clk 0:03:00.1]} 3. Nc3 {[%clk 0:02:59.8]} 3... Nf6 {[%clk 0:03:00.4]}
4. cxd5 {[%clk 0:02:57.2]} 4... cxd5 {[%clk 0:03:00]} 5. Bf4 {[%clk 0:02:56.9]}
5... Nc6 {[%clk 0:03:00.1]} 6. e3 {[%clk 0:02:56.9]} 6... e6 {[%clk 0:03:00.1]}
7. Bb5 {[%clk 0:02:56.4]} 7... Bd7 {[%clk 0:02:58.3]} 8. Nf3 {[%clk 0:02:55.7]}
8... Be7 {[%clk 0:02:57.9]} 9. a3 {[%clk 0:02:54.5]} 9... O-O {[%clk 0:02:57.8]}
10. O-O {[%clk 0:02:54]} 10... Rc8 {[%clk 0:02:57.7]} 11. Rc1 {[%clk 0:02:52.8]}
11... a6 {[%clk 0:02:58]} 12. Ba4 {[%clk 0:02:50.7]} 12... b5 {[%clk 0:02:55.3]}
13. Bc2 {[%clk 0:02:49.3]} 13... Na5 {[%clk 0:02:51.9]} 14. Bb1 {[%clk 0:02:44]}
14... Nc4 {[%clk 0:02:43.9]} 15. Be5 {[%clk 0:02:28.7]} 15... g6 {[%clk
0:02:36.4]} 16. Qe2 {[%clk 0:02:25.4]} 16... Qa5 {[%clk 0:02:27.7]} 17. Bd3
{[%clk 0:02:00.4]} 17... Nxe5 {[%clk 0:01:44.3]} 18. dxe5 {[%clk 0:02:01.3]}
18... Nh5 {[%clk 0:01:38.1]} 19. Nd4 {[%clk 0:01:52.4]} 19... Ng7 {[%clk
0:01:31.1]} 20. Nb1 {[%clk 0:01:48.9]} 20... Nf5 {[%clk 0:01:24.4]} 21. Bxf5
{[%clk 0:01:38.5]} 21... gxf5 {[%clk 0:01:25.3]} 22. b4 {[%clk 0:01:32]} 22...
Qb6 {[%clk 0:01:21.6]} 23. Nb3 {[%clk 0:01:29]} 23... Qb8 {[%clk 0:01:18.2]} 24.
f4 {[%clk 0:01:26.2]} 24... Kh8 {[%clk 0:01:13.4]} 25. N1d2 {[%clk 0:01:21.4]}
25... f6 {[%clk 0:01:07.1]} 26. Nf3 {[%clk 0:01:17.9]} 26... Rc4 {[%clk
0:01:02.8]} 27. Na5 {[%clk 0:01:12.9]} 27... Rxc1 {[%clk 0:01:00.2]} 28. Rxc1
{[%clk 0:01:12]} 28... Rc8 {[%clk 0:01:00.4]} 29. Qd2 {[%clk 0:01:03.5]} 29...
Be8 {[%clk 0:00:41.5]} 30. Nd4 {[%clk 0:00:52]} 30... Rxc1+ {[%clk 0:00:32.5]}
31. Qxc1 {[%clk 0:00:52.9]} 31... fxe5 {[%clk 0:00:32.5]} 32. Nxe6 {[%clk
0:00:26.7]} 32... Qd6 {[%clk 0:00:26.9]} 33. Nc5 {[%clk 0:00:23.7]} 33... d4
{[%clk 0:00:22.4]} 34. Nab7 {[%clk 0:00:21.4]} 34... Qd5 {[%clk 0:00:18.9]} 35.
fxe5 {[%clk 0:00:19.1]} 35... Bc6 {[%clk 0:00:17.3]} 36. Qd2 {[%clk 0:00:17.7]}
36... Bxb7 {[%clk 0:00:16.5]} 37. Nxb7 {[%clk 0:00:16.6]} 37... Qxb7 {[%clk
0:00:16.7]} 38. Qxd4 {[%clk 0:00:17.3]} 38... Kg7 {[%clk 0:00:12.4]} 39. e6+
{[%clk 0:00:16.9]} 39... Bf6 {[%clk 0:00:12]} 40. Qd6 {[%clk 0:00:14]} 40... Qe7
{[%clk 0:00:11.7]} 41. Qxa6 {[%clk 0:00:13.2]} 41... Bg5 {[%clk 0:00:11.6]} 42.
Kf2 {[%clk 0:00:12.2]} 42... Kf6 {[%clk 0:00:11.7]} 43. Qxb5 {[%clk 0:00:10.8]}
43... Qxe6 {[%clk 0:00:12.3]} 44. Qc5 {[%clk 0:00:10.4]} 44... Qe5 {[%clk
0:00:11]} 45. Qc6+ {[%clk 0:00:09.1]} 45... Qe6 {[%clk 0:00:10.7]} 46. Qc3+
{[%clk 0:00:09]} 46... Kg6 {[%clk 0:00:10.3]} 47. a4 {[%clk 0:00:08.3]} 47... f4
{[%clk 0:00:09.5]} 48. exf4 {[%clk 0:00:07.8]} 48... Bxf4 {[%clk 0:00:09.6]} 49.
Qd3+ {[%clk 0:00:07.7]} 49... Qf5 {[%clk 0:00:08.2]} 50. Qxf5+ {[%clk 0:00:07]}
50... Kxf5 {[%clk 0:00:09.1]} 51. g3 {[%clk 0:00:07]} 51... Bd2 {[%clk
0:00:08.8]} 52. b5 {[%clk 0:00:05.5]} 52... Ba5 {[%clk 0:00:09]} 53. Ke3 {[%clk
0:00:05.2]} 53... Kg4 {[%clk 0:00:07.5]} 54. Kf2 {[%clk 0:00:03.2]} 54... Bb6+
{[%clk 0:00:05.1]} 55. Kg2 {[%clk 0:00:02.3]} 55... h5 {[%clk 0:00:05.8]} 56.
h3+ {[%clk 0:00:02]} 56... Kg5 {[%clk 0:00:05.8]} 57. Kf3 {[%clk 0:00:02.1]}
57... Ba5 {[%clk 0:00:04.9]} 58. h4+ {[%clk 0:00:01.3]} 58... Kf5 {[%clk
0:00:04.9]} 59. Kg2 {[%clk 0:00:01]} 59... Bc7 {[%clk 0:00:05]} 0-1